fUSD/lending_fUSD_20260511
["ID","MTS","AMOUNT","RATE_DAILY","PERIOD"]
[422035706,1778507443000,-500.0,0.00022052,2]
[422035705,1778507443000,-642.99210096,0.00022052,2]
[422035704,1778507443000,-500.0,0.00022052,2]
[422035703,1778507443000,-500.0,0.00022052,2]
[422035708,1778507443000,-500.0,0.00022052,2]
[422035709,1778507443000,-500.0,0.00022052,2]
[422035712,1778507443000,-500.0,0.00022052,2]
[422035696,1778507443000,-500.0,0.00022052,2]
[422035697,1778507443000,-500.0,0.00022052,2]
[422035699,1778507443000,-500.0,0.00022052,2]
[422035692,1778507443000,-308.51705602,0.00022052,2]
[422035694,1778507443000,-500.0,0.00022052,2]
[422035691,1778507443000,-500.0,0.00022052,2]
[422035688,1778507443000,-12428.45895572,0.00022045,2]
[422035689,1778507443000,-21797.92,0.00022045,2]
[422035687,1778507443000,-1154.85428316,0.00021955,2]
[422035686,1778507443000,-298.96631852,0.00021955,2]
[422035685,1778507443000,-727.0,0.00021955,2]
[422035684,1778507443000,-290.839982,0.00021955,2]
[422035679,1778507443000,-28.33941632,0.00021955,2]
[422035700,1778507443000,-500.0,0.00022052,2]
[422035690,1778507443000,-500.48480402,0.00022052,2]
[422035710,1778507443000,-500.0,0.00022052,2]
[422035729,1778507443000,-500.0,0.00022052,2]
[422035713,1778507443000,-500.0,0.00022052,2]
[422035740,1778507443000,-756.38595177,0.00022055,2]
[422035741,1778507443000,-12134.80935348,0.00022055,2]
[422035738,1778507443000,-205.71354633,0.00022054,2]
[422035737,1778507443000,-500.0,0.00022054,2]
[422035736,1778507443000,-181.4084806,0.00022054,2]
[422035734,1778507443000,-500.0,0.00022054,2]
[422035735,1778507443000,-500.0,0.00022054,2]
[422035733,1778507443000,-178.93463764,0.00022054,2]
[422035732,1778507443000,-208.51550187,0.00022052,2]
[422035731,1778507443000,-500.0,0.00022052,2]
[422035739,1778507443000,-4328.19119421,0.00022055,2]
[422035728,1778507443000,-500.0,0.00022052,2]
[422035730,1778507443000,-500.0,0.00022052,2]
[422035718,1778507443000,-500.0,0.00022052,2]
[422035715,1778507443000,-500.0,0.00022052,2]
[422035723,1778507443000,-500.0,0.00022052,2]
[422035725,1778507443000,-500.0,0.00022052,2]
[422035727,1778507443000,-500.0,0.00022052,2]
[422035724,1778507443000,-500.0,0.00022052,2]
[422035714,1778507443000,-500.0,0.00022052,2]
[422035717,1778507443000,-500.0,0.00022052,2]
[422035716,1778507443000,-500.0,0.00022052,2]
[422035719,1778507443000,-500.0,0.00022052,2]
[422035720,1778507443000,-500.0,0.00022052,2]
[422035721,1778507443000,-500.0,0.00022052,2]
[422035726,1778507443000,-500.0,0.00022052,2]
[422035702,1778507443000,-500.0,0.00022052,2]
[422035742,1778507444000,-9270.8,0.00022055,2]
[422035746,1778507446000,-303.32922135,0.00022055,2]
[422035745,1778507446000,-1516.0,0.00022055,2]
[422035744,1778507446000,-16194.84355714,0.00022055,2]
[422035743,1778507446000,-310.79183755,0.00022055,2]
[422035796,1778508377000,156.17,8.726e-05,2]
[422035807,1778508585000,383.30701193,0.00027253,120]
[422035808,1778508587000,5026.45809755,0.0001069,3]
[422035811,1778508597000,161.18144398,0.00027126,120]
[422035810,1778508597000,161.18144398,0.00027126,120]
[422035850,1778508632000,-500.0,0.00011999,2]
[422035852,1778508632000,-500.0,0.00011999,2]
[422035851,1778508632000,-500.0,0.00011999,2]
[422035858,1778508632000,-500.0,0.00011999,2]
[422035849,1778508632000,-500.0,0.00011999,2]
[422035854,1778508632000,-500.0,0.00011999,2]
[422035853,1778508632000,-500.0,0.00011999,2]
[422035847,1778508632000,-500.0,0.00011999,2]
[422035845,1778508632000,-500.0,0.00011999,2]
[422035846,1778508632000,-500.0,0.00011999,2]
[422035844,1778508632000,-500.0,0.00011999,2]
[422035843,1778508632000,-500.0,0.00011999,2]
[422035841,1778508632000,-500.0,0.00011999,2]
[422035840,1778508632000,-500.0,0.00011999,2]
[422035838,1778508632000,-500.0,0.00011999,2]
[422035839,1778508632000,-500.0,0.00011999,2]
[422035837,1778508632000,-27382.65575357,0.000107,2]
[422035836,1778508632000,-36036.68087875,0.000107,2]
[422035835,1778508632000,-1200.0,0.00010699,2]
[422035833,1778508632000,-150.19379515,0.000106,2]
[422035834,1778508632000,-7548.18785831,0.0001069,2]
[422035832,1778508632000,-3972.19318587,0.000105,2]
[422035830,1778508632000,-675.352,0.000105,2]
[422035831,1778508632000,-448.71589931,0.000105,2]
[422035829,1778508632000,-451.28410069,0.000105,2]
[422035828,1778508632000,-2386.648,0.000105,2]
[422035826,1778508632000,-299.70681413,0.000105,2]
[422035842,1778508632000,-500.0,0.00011999,2]
[422035857,1778508632000,-500.0,0.00011999,2]
[422035848,1778508632000,-500.0,0.00011999,2]
[422035860,1778508632000,-500.0,0.00011999,2]
[422035886,1778508632000,-500.0,0.00011999,2]
[422035888,1778508632000,-236.10530687,0.00011999,2]
[422035889,1778508632000,-3670.71870902,0.00012,2]
[422035884,1778508632000,-500.0,0.00011999,2]
[422035885,1778508632000,-500.0,0.00011999,2]
[422035887,1778508632000,-500.0,0.00011999,2]
[422035883,1778508632000,-500.0,0.00011999,2]
[422035881,1778508632000,-500.0,0.00011999,2]
[422035882,1778508632000,-500.0,0.00011999,2]
[422035876,1778508632000,-500.0,0.00011999,2]
[422035875,1778508632000,-500.0,0.00011999,2]
[422035867,1778508632000,-500.0,0.00011999,2]
[422035874,1778508632000,-500.0,0.00011999,2]
[422035872,1778508632000,-500.0,0.00011999,2]
[422035877,1778508632000,-500.0,0.00011999,2]
[422035871,1778508632000,-500.0,0.00011999,2]
[422035859,1778508632000,-500.0,0.00011999,2]
[422035863,1778508632000,-500.0,0.00011999,2]
[422035873,1778508632000,-500.0,0.00011999,2]
[422035865,1778508632000,-500.0,0.00011999,2]
[422035856,1778508632000,-500.0,0.00011999,2]
[422035866,1778508632000,-500.0,0.00011999,2]
[422035861,1778508632000,-500.0,0.00011999,2]
[422035878,1778508632000,-500.0,0.00011999,2]
[422035879,1778508632000,-500.0,0.00011999,2]
[422035870,1778508632000,-500.0,0.00011999,2]
[422035869,1778508632000,-500.0,0.00011999,2]
[422035880,1778508632000,-500.0,0.00011999,2]
[422035868,1778508632000,-500.0,0.00011999,2]
[422035855,1778508632000,-500.0,0.00011999,2]
[422035917,1778508638000,-3649.85843808,0.00012,2]
[422035918,1778508638000,-320.29200147,0.00012,2]
[422035919,1778508638000,-26394.86598346,0.00012,2]
[422035916,1778508638000,-304.0,0.00012,2]
[422036159,1778508640000,-1515.4,0.00012,2]
[422036164,1778508640000,-1500.0,0.00012,2]
[422036162,1778508640000,-650.4944148,0.00012,2]
[422036252,1778508643000,-3134.90995064,0.00012,2]
[422036257,1778508646000,-1558.470364,0.00012,2]
[422036258,1778508646000,-2026.7,0.00012,2]
[422036284,1778509453000,10000.0,0.00027397,120]
[422036285,1778509461000,10000.0,0.00027397,120]
[422036286,1778509466000,10000.0,0.00027397,120]
[422036287,1778509472000,10000.0,0.00027397,120]
[422036288,1778509478000,10000.0,0.00027397,120]
[422036289,1778509486000,10000.0,0.00027397,120]
[422036290,1778509501000,9440.0,0.00027397,120]
[422036302,1778509838000,-287.68959405,0.00011218,2]
[422036304,1778509838000,-722.88842595,0.00011218,2]
[422036305,1778509838000,-33.10593275,0.00011218,2]
[422036303,1778509838000,-80.18157405,0.00011218,2]
[422036306,1778509838000,-2459.2724256,0.00011218,2]
[422036307,1778509838000,-2190.16845805,0.00011999,2]
[422036310,1778509838000,-388.13748783,0.00012,2]
[422036311,1778509838000,-1948.21915419,0.00012,2]
[422036308,1778509838000,-114.54854195,0.00011999,2]
[422036312,1778509838000,-7354.46840139,0.00012,2]
[422036313,1778509838000,-24925.81402482,0.00012,2]
[422036315,1778509838000,-500.0,0.00013562,2]
[422036316,1778509838000,-113.98566427,0.0001399,2]
[422036314,1778509838000,-855.06629437,0.000133,2]
[422036318,1778509838000,-250.0,0.00014,2]
[422036317,1778509838000,-136.01433573,0.0001399,2]
[422036319,1778509838000,-68.05791427,0.00014499,2]
[422036309,1778509838000,-194.911,0.00011999,2]
[422036548,1778509840000,-834.75260066,0.000149,2]
[422036547,1778509840000,-172.05672924,0.000149,2]
[422036550,1778509840000,-322.75329385,0.000149,2]
[422036546,1778509840000,-776.1081474,0.000149,2]
[422036545,1778509840000,-5000.0,0.000149,2]
[422036541,1778509840000,-150.0,0.00014499,2]
[422036540,1778509840000,-150.0,0.00014499,2]
[422036544,1778509840000,-150.0,0.00014499,2]
[422036542,1778509840000,-150.0,0.00014499,2]
[422036538,1778509840000,-81.94208573,0.00014499,2]
[422036539,1778509840000,-150.0,0.00014499,2]
[422036551,1778509840000,-476.98593642,0.00014999,2]
[422036543,1778509840000,-150.0,0.00014499,2]
[422036552,1778509840000,-500.0,0.00014999,2]
[422036549,1778509840000,-490.88017326,0.000149,2]
[422036556,1778509840000,-399.80598283,0.00014999,2]
[422036567,1778509840000,-2038.3362421,0.00015,2]
[422036564,1778509840000,-301.92197159,0.00015,2]
[422036565,1778509840000,-3869.19,0.00015,2]
[422036563,1778509840000,-15640.86187786,0.00015,2]
[422036557,1778509840000,-500.0,0.00014999,2]
[422036559,1778509840000,-343.99948243,0.00014999,2]
[422036554,1778509840000,-500.0,0.00014999,2]
[422036561,1778509840000,-170.27641037,0.00014999,2]
[422036560,1778509840000,-170.27641037,0.00014999,2]
[422036566,1778509840000,-522.9232407,0.00015,2]
[422036553,1778509840000,-500.0,0.00014999,2]
[422036562,1778509840000,-500.0,0.00014999,2]
[422036555,1778509840000,-500.0,0.00014999,2]
[422036558,1778509840000,-500.0,0.00014999,2]
[422036573,1778509841000,-66175.48689027,0.00015,2]
[422036572,1778509841000,-74675.72337625,0.00015,2]
[422036568,1778509841000,-30323.01826066,0.00015,2]
[422036592,1778509843000,-9580.97694113,0.00015,2]
[422036593,1778509843000,-1733.59562206,0.00015,2]
[422036594,1778509843000,-3776.1636923,0.00015,2]
[422036600,1778509846000,-990.26373718,0.00015,2]
[422036601,1778509846000,-587.51345865,0.00015,2]
[422036605,1778509847000,-769.51043313,0.00015,2]
[422036603,1778509847000,-8054.94898661,0.00015,2]
[422036604,1778509847000,-398.72931706,0.00015,2]
[422036602,1778509847000,-2464.15950779,0.00015,2]
[422036612,1778509995000,1248.08079839,0.00016181,21]
[422036620,1778510198000,-2651.18191606,0.000149,2]
[422036615,1778510198000,-1843.773,0.000147,2]
[422036618,1778510198000,-2545.3064519,0.000149,2]
[422036617,1778510198000,-5000.0,0.000149,2]
[422036616,1778510198000,-155.929,0.000147,2]
[422036619,1778510198000,-534.16721244,0.000149,2]
[422036622,1778510198000,-23018.5252029,0.00014905,2]
[422036627,1778510198000,-500.0,0.00014999,2]
[422036624,1778510198000,-590.7996377,0.00014999,2]
[422036621,1778510198000,-327.25344884,0.000149,2]
[422036625,1778510198000,-322.20066476,0.00014999,2]
[422036628,1778510198000,-150.40022105,0.00014999,2]
[422036626,1778510198000,-333.8901555,0.00014999,2]
[422036629,1778510198000,-139793.47843509,0.00015,2]
[422036623,1778510198000,-206.09465376,0.00014999,2]
[422036635,1778511026000,150.52,8.295e-05,2]
[422036659,1778511032000,-408.32694597,0.000149,2]
[422036658,1778511032000,-314.5847794,0.000149,2]
[422036656,1778511032000,-5000.0,0.000149,2]
[422036654,1778511032000,-186.0,0.00014899,2]
[422036655,1778511032000,-300.0,0.00014899,2]
[422036653,1778511032000,-624.59488051,0.00014898,2]
[422036657,1778511032000,-1944.96079461,0.000149,2]
[422036652,1778511032000,-575.40511949,0.00014898,2]
[422036648,1778511032000,-155.929,0.000147,2]
[422036649,1778511032000,-300.0,0.00014898,2]
[422036651,1778511032000,-300.0,0.00014898,2]
[422036647,1778511032000,-1475.019,0.000147,2]
[422036646,1778511032000,-150.0,0.00014139,2]
[422036645,1778511032000,-110.72,0.00014,2]
[422036644,1778511032000,-139.28,0.00014,2]
[422036660,1778511032000,-518.9374623,0.000149,2]
[422036650,1778511032000,-300.0,0.00014898,2]
[422036661,1778511032000,-218.1689659,0.000149,2]
[422036643,1778511032000,-150.52,0.0001228,2]
[422036664,1778511032000,-140.81294468,0.00014987,2]
[422036662,1778511032000,-2179.46062712,0.000149,2]
[422036680,1778511032000,-344.81306968,0.00015,2]
[422036676,1778511032000,-21252.19413754,0.00015,2]
[422036681,1778511032000,-2539.32212326,0.00015,2]
[422036678,1778511032000,-5462.9794221,0.00015,2]
[422036679,1778511032000,-882.31924771,0.00015,2]
[422036674,1778511032000,-233.72310885,0.00014999,2]
[422036675,1778511032000,-111790.94547848,0.00015,2]
[422036672,1778511032000,-413.55974639,0.00014999,2]
[422036677,1778511032000,-123685.62782444,0.00015,2]
[422036670,1778511032000,-879.56950584,0.00014987,2]
[422036673,1778511032000,-165.25,0.00014999,2]
[422036665,1778511032000,-676.9659404,0.00014987,2]
[422036663,1778511032000,-150.0,0.00014986,2]
[422036667,1778511032000,-1708.92127049,0.00014987,2]
[422036666,1778511032000,-1857.55759253,0.00014987,2]
[422036668,1778511032000,-1103.6135044,0.00014987,2]
[422036671,1778511032000,-12213.7775378,0.00014987,2]
[422036669,1778511032000,-1388.41357026,0.00014987,2]
[422036731,1778511037000,-694183.19770378,0.00015,2]
[422036723,1778511037000,-279.5,0.00015,2]
[422036725,1778511037000,-1237.48276798,0.00015,2]
[422036727,1778511037000,-256.34192339,0.00015,2]
[422036724,1778511037000,-767.54052114,0.00015,2]
[422036729,1778511037000,-2072.85969561,0.00015,2]
[422036726,1778511037000,-261.29095318,0.00015,2]
[422036728,1778511037000,-510.81982334,0.00015,2]
[422036736,1778511037000,-300.0,0.000154,2]
[422036730,1778511037000,-2787.90033215,0.00015,2]
[422036733,1778511037000,-29387.50809224,0.00015,2]
[422036734,1778511037000,-173.0,0.00015,2]
[422036735,1778511037000,-486.67419624,0.000153,2]
[422036732,1778511037000,-199.63,0.00015,2]
[422036738,1778511037000,-300.0,0.00016,2]
[422036739,1778511037000,-2459.2724256,0.00016079,2]
[422036740,1778511037000,-18440.05266128,0.0001611,15]
[422036741,1778511037000,-255.0,0.0001611,2]
[422036742,1778511037000,-244.24462869,0.0001617,2]
[422036737,1778511037000,-208.15897961,0.00015844,2]
[422036743,1778511037000,-150.52,0.00016265,2]
[422036806,1778511038000,-151.0,0.00018614,2]
[422036801,1778511038000,-738.12,0.00018142,2]
[422036799,1778511038000,-4467.45,0.00018062,2]
[422036802,1778511038000,-234.4,0.0001841,2]
[422036793,1778511038000,-2351.0,0.00018027,2]
[422036797,1778511038000,-195.910297,0.00018062,2]
[422036804,1778511038000,-736.0,0.00018613,2]
[422036809,1778511038000,-167.4,0.00018663,2]
[422036791,1778511038000,-350.0,0.00018,2]
[422036787,1778511038000,-222.77,0.000178,2]
[422036795,1778511038000,-151.0,0.00018062,2]
[422036808,1778511038000,-2179.46062711,0.00018614,2]
[422036823,1778511038000,-155.0,0.0002,2]
[422036811,1778511038000,-218.16896588,0.000189,2]
[422036814,1778511038000,-11082.87,0.00019178,2]
[422036815,1778511038000,-151.0,0.000192,2]
[422036817,1778511038000,-486.67419623,0.00019576,2]
[422036816,1778511038000,-823.0,0.00019536,2]
[422036819,1778511038000,-3292.0,0.00019829,2]
[422036818,1778511038000,-5530.0,0.000198,3]
[422036821,1778511038000,-2170.96,0.00019968,2]
[422036820,1778511038000,-508.5716395,0.00019911,2]
[422036822,1778511038000,-296.707215,0.0002,2]
[422036783,1778511038000,-3186.80998224,0.00017678,2]
[422036812,1778511038000,-1610.12,0.00019064,2]
[422036789,1778511038000,-587.0,0.00017849,2]
[422036751,1778511038000,-591.2,0.00016474,2]
[422036781,1778511038000,-862.93,0.00017639,2]
[422036824,1778511038000,-557.0,0.0002,2]
[422036748,1778511038000,-282.53756628,0.00016438,2]
[422036747,1778511038000,-17069.9,0.00016402,2]
[422036744,1778511038000,-420.0,0.00016307,2]
[422036746,1778511038000,-1680.0,0.00016388,2]
[422036745,1778511038000,-208.0,0.00016307,2]
[422036749,1778511038000,-2170.96,0.00016474,2]
[422036750,1778511038000,-722.66,0.00016474,2]
[422036752,1778511038000,-738.12,0.00016493,2]
[422036753,1778511038000,-342.83,0.00016584,2]
[422036754,1778511038000,-738.12,0.00016905,2]
[422036755,1778511038000,-280.49,0.0001694,2]
[422036756,1778511038000,-186.4,0.0001694,2]
[422036757,1778511038000,-186.4,0.0001694,2]
[422036758,1778511038000,-186.4,0.0001694,2]
[422036759,1778511038000,-186.4,0.0001694,2]
[422036761,1778511038000,-186.4,0.0001694,2]
[422036763,1778511038000,-1610.12,0.00016946,2]
[422036776,1778511038000,-150.0,0.00017401,2]
[422036779,1778511038000,-160.71,0.00017622,2]
[422036765,1778511038000,-698.86,0.00017213,2]
[422036767,1778511038000,-488.99,0.00017222,2]
[422036769,1778511038000,-152.12,0.00017248,2]
[422036772,1778511038000,-738.12,0.00017318,2]
[422036774,1778511038000,-433.0,0.00017324,2]
[422036785,1778511038000,-738.12,0.0001773,2]
[422036826,1778511038000,-211.0,0.0002,2]
[422036813,1778511038000,-118589.0,0.000191,2]
[422036828,1778511038000,-160.10266927,0.0002,2]
[422036858,1778511038000,-152.0,0.00021092,2]
[422036859,1778511038000,-152.0,0.00021092,2]
[422036862,1778511038000,-152.0,0.00021092,2]
[422036860,1778511038000,-152.0,0.00021092,2]
[422036861,1778511038000,-152.0,0.00021092,2]
[422036866,1778511038000,-1152.0,0.00021384,2]
[422036867,1778511038000,-150.0,0.00021454,4]
[422036865,1778511038000,-1610.12,0.00021182,2]
[422036864,1778511038000,-151.0,0.00021182,2]
[422036869,1778511038000,-713.06413011,0.000215,14]
[422036868,1778511038000,-336.1303038,0.000215,14]
[422036870,1778511038000,-2929.0,0.00021812,2]
[422036871,1778511038000,-150.0,0.00021837,4]
[422036874,1778511038000,-5000.0,0.00021918,2]
[422036873,1778511038000,-151.0,0.00021918,2]
[422036872,1778511038000,-214.82098671,0.00021862,2]
[422036875,1778511038000,-151.0,0.00021918,2]
[422036877,1778511038000,-161.01677761,0.00021954,15]
[422036876,1778511038000,-151.0,0.00021918,2]
[422036879,1778511038000,-1179.0,0.00022,2]
[422036878,1778511038000,-557.0,0.00022,2]
[422036880,1778511038000,-211.0,0.00022,2]
[422036882,1778511038000,-150.0,0.0002222,4]
[422036881,1778511038000,-248.0,0.00022,2]
[422036827,1778511038000,-248.0,0.0002,2]
[422036856,1778511038000,-152.0,0.00021092,2]
[422036857,1778511038000,-152.0,0.00021092,2]
[422036863,1778511038000,-152.0,0.00021092,2]
[422036855,1778511038000,-152.0,0.00021092,2]
[422036830,1778511038000,-160.10266929,0.0002,2]
[422036829,1778511038000,-160.10266927,0.0002,2]
[422036825,1778511038000,-1179.0,0.0002,2]
[422036831,1778511038000,-400.0,0.0002,2]
[422036833,1778511038000,-528.52092941,0.00020111,2]
[422036832,1778511038000,-414.0,0.00020006,2]
[422036854,1778511038000,-152.0,0.00021092,2]
[422036836,1778511038000,-3186.80998224,0.00020456,2]
[422036835,1778511038000,-5530.0,0.000204,5]
[422036837,1778511038000,-2985.4,0.00020548,2]
[422036840,1778511038000,-150.0,0.00020688,2]
[422036838,1778511038000,-2985.4,0.00020548,2]
[422036842,1778511038000,-2459.2724256,0.0002094,2]
[422036834,1778511038000,-234.4,0.00020381,2]
[422036841,1778511038000,-150.0,0.00020688,2]
[422036839,1778511038000,-150.0,0.00020688,2]
[422036851,1778511038000,-150.0,0.00021071,4]
[422036850,1778511038000,-248.0,0.00021,2]
[422036849,1778511038000,-211.0,0.00021,2]
[422036847,1778511038000,-557.0,0.00021,2]
[422036852,1778511038000,-152.0,0.00021092,2]
[422036853,1778511038000,-152.0,0.00021092,2]
[422036848,1778511038000,-1179.0,0.00021,2]
[422036843,1778511038000,-150.99,0.00020951,2]
[422036845,1778511038000,-299.99,0.00020951,7]
[422036846,1778511038000,-166.0,0.00021,2]
[422036844,1778511038000,-722.78,0.00020951,2]
[422036893,1778511039000,-151.0,0.000225,2]
[422036897,1778511039000,-3540.0,0.00022519,2]
[422036895,1778511039000,-942.939,0.00022519,2]
[422036894,1778511039000,-151.0,0.000225,2]
[422036892,1778511039000,-32878.72457594,0.000225,2]
[422036899,1778511039000,-1269.0,0.00022519,2]
[422036891,1778511039000,-372.73608226,0.000225,2]
[422036884,1778511039000,-573.0,0.00022233,5]
[422036890,1778511039000,-1290.08569442,0.000225,2]
[422036886,1778511039000,-2179.46062711,0.00022329,2]
[422036888,1778511039000,-608.4,0.00022466,2]
[422036887,1778511039000,-234.4,0.00022353,2]
[422036885,1778511039000,-356.0,0.00022233,5]
[422036896,1778511039000,-624.0,0.00022519,2]
[422036889,1778511039000,-1436.88996475,0.000225,2]
[422036900,1778511039000,-1223.0,0.00022519,2]
[422036883,1778511039000,-372.0,0.00022233,5]
[422036901,1778511039000,-150.0,0.00022519,2]
[422036898,1778511039000,-926.0,0.00022519,2]
[422036918,1778511039000,-774.295,0.00023,2]
[422036917,1778511039000,-1188.44991006,0.00023,2]
[422036916,1778511039000,-80501.0,0.00023,2]
[422036915,1778511039000,-16407.65011638,0.00023,2]
[422036910,1778511039000,-150.0,0.00022986,4]
[422036912,1778511039000,-19272.08119864,0.00023,2]
[422036911,1778511039000,-4752.02001588,0.00023,2]
[422036913,1778511039000,-3460.0,0.00023,2]
[422036908,1778511039000,-218.16896588,0.000229,2]
[422036905,1778511039000,-150.0,0.00022603,4]
[422036907,1778511039000,-591.2,0.00022691,2]
[422036906,1778511039000,-722.66,0.00022691,2]
[422036903,1778511039000,-6049.0,0.00022519,2]
[422036902,1778511039000,-940.001,0.00022519,2]
[422036904,1778511039000,-305.161321,0.0002254,14]
[422036909,1778511039000,-477.49,0.00022935,2]
[422036945,1778511040000,-2598.95152673,0.0002421,2]
[422036942,1778511040000,-248.0,0.00024,2]
[422036938,1778511040000,-1253.19155929,0.00024,2]
[422036941,1778511040000,-211.0,0.00024,2]
[422036944,1778511040000,-500.0,0.00024148,2]
[422036943,1778511040000,-532.35,0.0002411,2]
[422036946,1778511040000,-1248.0807984,0.00024273,21]
[422036959,1778511040000,-151.0,0.00024658,2]
[422036949,1778511040000,-151.0,0.00024658,2]
[422036947,1778511040000,-234.4,0.00024324,2]
[422036954,1778511040000,-151.0,0.00024658,2]
[422036951,1778511040000,-151.0,0.00024658,2]
[422036957,1778511040000,-151.0,0.00024658,2]
[422036953,1778511040000,-199.2,0.00024658,2]
[422036937,1778511040000,-3600.0,0.00024,2]
[422036948,1778511040000,-509.0,0.00024397,2]
[422036940,1778511040000,-1179.0,0.00024,2]
[422036927,1778511040000,-311.43,0.00023209,2]
[422036936,1778511040000,-1036.41686256,0.00024,2]
[422036920,1778511040000,-557.0,0.00023,2]
[422036919,1778511040000,-153390.05906822,0.00023,2]
[422036921,1778511040000,-1179.0,0.00023,2]
[422036923,1778511040000,-248.0,0.00023,2]
[422036925,1778511040000,-151.0,0.00023,2]
[422036922,1778511040000,-211.0,0.00023,2]
[422036924,1778511040000,-152.274093,0.00023,2]
[422036939,1778511040000,-557.0,0.00024,2]
[422036926,1778511040000,-200.0,0.00023199,2]
[422036930,1778511040000,-153.32280477,0.00023387,2]
[422036928,1778511040000,-3186.80998224,0.00023233,2]
[422036932,1778511040000,-401.49225916,0.000235,2]
[422036933,1778511040000,-415.16417917,0.000236,2]
[422036931,1778511040000,-1613.0,0.00023406,2]
[422036935,1778511040000,-486.67419623,0.00023852,2]
[422036934,1778511040000,-500.0,0.000236,2]
[422036929,1778511040000,-1610.12,0.00023301,2]
[422036952,1778511040000,-151.0,0.00024658,2]
[422036955,1778511040000,-151.0,0.00024658,2]
[422036958,1778511040000,-151.0,0.00024658,2]
[422036979,1778511040000,-2711.36094682,0.00025,2]
[422036980,1778511040000,-1127.71812611,0.00025,2]
[422036982,1778511040000,-1806.97496951,0.00025,2]
[422036981,1778511040000,-210.05889768,0.00025,2]
[422036950,1778511040000,-151.0,0.00024658,2]
[422036983,1778511040000,-540.0,0.00025,2]
[422036985,1778511040000,-3080.88862267,0.00025,2]
[422036988,1778511040000,-557.0,0.00025,2]
[422036987,1778511040000,-2126.59099733,0.00025,2]
[422036989,1778511040000,-1196.0,0.00025,2]
[422036986,1778511040000,-162.30495181,0.00025,15]
[422036990,1778511040000,-223.0,0.00025,2]
[422036993,1778511040000,-150.67,0.00025171,2]
[422036991,1778511040000,-248.0,0.00025,2]
[422036992,1778511040000,-150.67,0.00025,30]
[422036976,1778511040000,-150.0,0.00024747,2]
[422036978,1778511040000,-962.17853804,0.000249,2]
[422036984,1778511040000,-618.32359529,0.00025,2]
[422036975,1778511040000,-150.0,0.00024747,2]
[422036956,1778511040000,-151.0,0.00024658,2]
[422036977,1778511040000,-150.67,0.00024829,7]
[422036960,1778511040000,-151.0,0.00024658,2]
[422036963,1778511040000,-151.0,0.00024658,2]
[422036964,1778511040000,-151.0,0.00024658,2]
[422036962,1778511040000,-151.0,0.00024658,2]
[422036961,1778511040000,-151.0,0.00024658,2]
[422036966,1778511040000,-151.0,0.00024658,2]
[422036965,1778511040000,-151.0,0.00024658,2]
[422036968,1778511040000,-151.0,0.00024658,2]
[422036969,1778511040000,-151.0,0.00024658,2]
[422036971,1778511040000,-231.206418,0.00024658,2]
[422036970,1778511040000,-151.0,0.00024658,2]
[422036972,1778511040000,-1000.0,0.00024658,2]
[422036973,1778511040000,-150.67,0.00024658,2]
[422036974,1778511040000,-862.93,0.00024694,2]
[422036967,1778511040000,-151.0,0.00024658,2]